[Event "African Open (w)"]
[Site "followchess.com"]
[Date "2022.09.22"]
[Round "5"]
[White "Wafa, Shahenda"]
[Black "Paulo, Jemima"]
[Result "1-0"]
[ECO "B76"]
[WhiteElo "2110"]
[BlackElo "1886"]
[PlyCount "108"]
[EventDate "2022.??.??"]
[TimeControl "5400+30"]

1. e4 {[%emt 0:00:02]} c5 {[%emt 0:00:06]} 2. Nf3 {[%emt 0:00:08]} d6 {[%emt 0:
00:12]} 3. d4 {[%emt 0:00:08]} cxd4 {[%emt 0:00:10]} 4. Nxd4 {[%emt 0:00:07]}
Nf6 {[%emt 0:00:14]} 5. Nc3 {[%emt 0:00:09]} g6 {[%emt 0:00:08]} 6. Be3 {
[%emt 0:00:10]} Bg7 {[%emt 0:00:09]} 7. f3 {[%emt 0:00:11]} O-O {[%emt 0:00:14]
} 8. Qd2 {[%emt 0:00:07]} Nc6 {[%emt 0:00:09]} 9. g4 {[%emt 0:01:05]} Bd7 {
[%emt 0:00:22]} 10. O-O-O {[%emt 0:01:30]} Rc8 {[%emt 0:00:09]} 11. h4 {
[%emt 0:00:57]} Ne5 {[%emt 0:02:22]} 12. h5 {[%emt 0:03:12]} Qa5 {[%emt 0:07:
35]} 13. Nb3 {[%emt 0:07:58]} Qc7 {[%emt 0:00:07]} 14. Be2 {[%emt 0:00:34]} b5
{[%emt 0:00:17]} 15. hxg6 {[%emt 0:10:15]} fxg6 {[%emt 0:00:13]} 16. g5 {
[%emt 0:02:59]} Nh5 {[%emt 0:00:13]} 17. Nd5 {[%emt 0:02:03]} Qd8 {[%emt 0:00:
39]} 18. f4 {[%emt 0:06:41]} Nc4 {[%emt 0:00:07]} 19. Bxc4 {[%emt 0:01:21]}
Rxc4 {[%emt 0:04:02]} 20. Bd4 {[%emt 0:11:27]} e5 {[%emt 0:08:43]} 21. fxe5 {
[%emt 0:02:38]} Bg4 {[%emt 0:01:50]} 22. Rde1 {[%emt 0:16:46]} dxe5 {[%emt 0:
07:26]} 23. Bc5 {[%emt 0:01:11]} Re8 {[%emt 0:00:17]} 24. Be7 {[%emt 0:01:45]}
Qd7 {[%emt 0:02:08]} 25. Nf6+ {[%emt 0:02:04]} Bxf6 {[%emt 0:00:09]} 26. gxf6 {
[%emt 0:01:46]} Qxd2+ {[%emt 0:00:41]} 27. Nxd2 {[%emt 0:00:25]} Rc6 {[%emt 0:
00:58]} 28. Reg1 {[%emt 0:01:25]} Be2 {[%emt 0:00:29]} 29. Rh2 {[%emt 0:01:34]}
Nf4 {[%emt 0:00:07]} 30. Rg5 {[%emt 0:01:23]} h5 {[%emt 0:01:05]} 31. Nb3 {
[%emt 0:02:57]} Rec8 {[%emt 0:00:36]} 32. c3 {[%emt 0:01:06]} Bg4 {[%emt 0:00:
51]} 33. Rd2 {[%emt 0:02:30]} Kf7 {[%emt 0:04:07]} 34. Rxe5 {[%emt 0:00:22]} h4
{[%emt 0:01:32]} 35. Nd4 {[%emt 0:01:35]} Rc4 {[%emt 0:01:49]} 36. Nxb5 {
[%emt 0:00:23]} R4c6 {[%emt 0:02:37]} 37. Nd6+ {[%emt 0:04:48]} Rxd6 {[%emt 0:
00:10]} 38. Bxd6 {[%emt 0:00:25]} Ne2+ {[%emt 0:03:22]} 39. Kc2 {[%emt 0:03:16]
} Kxf6 {[%emt 0:00:15]} 40. Re7 {[%emt 0:00:52]} g5 {[%emt 0:01:28]} 41. Kd3 {
[%emt 0:03:45]} Rd8 {[%emt 0:02:10]} 42. e5+ {[%emt 0:00:13]} Kg6 {[%emt 0:00:
04]} 43. Rxe2 {[%emt 0:00:40]} Bxe2+ {[%emt 0:00:15]} 44. Kxe2 {[%emt 0:00:05]}
h3 {[%emt 0:00:06]} 45. Kf2 {[%emt 0:00:21]} h2 {[%emt 0:00:19]} 46. Kg2 {
[%emt 0:00:16]} Rh8 {[%emt 0:00:16]} 47. Kh1 {[%emt 0:00:10]} g4 {[%emt 0:00:
30]} 48. e6 {[%emt 0:00:26]} Kf6 {[%emt 0:01:01]} 49. Rxa7 {[%emt 0:00:39]}
Kxe6 {[%emt 0:00:14]} 50. Bc5 {[%emt 0:04:35]} Kf5 {[%emt 0:01:01]} 51. Rg7 {
[%emt 0:00:17]} Rh6 {[%emt 0:02:03]} 52. Bf2 Rh3 {[%emt 0:00:30]} 53. a4 Ke4 {
[%emt 0:00:30]} 54. a5 Rh6 {[%emt 0:00:30]} 1-0

[Event "African Open (w)"]
[Site "followchess.com"]
[Date "2022.09.22"]
[Round "5"]
[White "Laubscher, Anzel"]
[Black "Caxita, Esperanca"]
[Result "0-1"]
[ECO "A05"]
[WhiteElo "1705"]
[BlackElo "1961"]
[PlyCount "42"]
[EventDate "2022.??.??"]
[TimeControl "5400+30"]

1. Nf3 Nf6 2. g3 d5 3. d3 c6 4. Nbd2 Bg4 5. Bg2 Nbd7 6. O-O e5 7. c4 e4 8. dxe4
dxe4 9. Ng5 e3 10. fxe3 Bc5 11. Nde4 Qe7 12. Bf3 Nxe4 13. Nxe4 Bh3 14. Rf2
O-O-O 15. Nxc5 Nxc5 16. Qc2 Ne4 17. Rf1 Bxf1 18. Kxf1 f5 19. a4 Qd7 20. Bxe4
fxe4 21. Qxe4 Qh3+ 0-1

[Event "African Open (w)"]
[Site "followchess.com"]
[Date "2022.09.22"]
[Round "5"]
[White "ONOJA, Iyefu Joy"]
[Black "Ofowino, Toritsemuwa"]
[Result "1/2-1/2"]
[ECO "D11"]
[WhiteElo "1762"]
[BlackElo "1857"]
[PlyCount "110"]
[EventDate "2022.??.??"]
[TimeControl "5400+30"]

1. d4 {[%emt 0:06:50]} d5 {[%emt 0:10:08]} 2. c4 {[%emt 0:00:30]} c6 {[%emt 0:
00:30]} 3. Nf3 {[%emt 0:00:30]} Nf6 {[%emt 0:00:30]} 4. e3 {[%emt 0:00:30]} a6
{[%emt 0:00:30]} 5. Nc3 {[%emt 0:00:30]} Bf5 {[%emt 0:00:30]} 6. Qb3 {[%emt 0:
00:30]} Ra7 {[%emt 0:00:30]} 7. Nh4 {[%emt 0:00:30]} Bc8 {[%emt 0:00:30]} 8.
Qc2 {[%emt 0:00:30]} b5 {[%emt 0:00:30]} 9. c5 {[%emt 0:00:30]} e5 {[%emt 0:00:
30]} 10. Nf3 e4 11. Ne5 {[%emt 0:01:00]} Qc7 {[%emt 0:01:00]} 12. b4 {[%emt 0:
00:30]} a5 {[%emt 0:00:30]} 13. Nxc6 {[%emt 0:00:30]} Nxc6 {[%emt 0:00:30]} 14.
Nxb5 {[%emt 0:00:30]} Qd7 {[%emt 0:00:30]} 15. Nxa7 {[%emt 0:00:30]} Nxb4 {
[%emt 0:00:30]} 16. Qb3 {[%emt 0:00:30]} Qxa7 {[%emt 0:00:30]} 17. Bd2 {
[%emt 0:00:30]} Nc6 {[%emt 0:00:30]} 18. Bb5 {[%emt 0:00:30]} Bd7 {[%emt 0:00:
30]} 19. Qa4 {[%emt 0:00:30]} Qc7 {[%emt 0:00:30]} 20. Rb1 {[%emt 0:00:30]} Be7
{[%emt 0:00:30]} 21. Bxc6 {[%emt 0:00:30]} Bxc6 {[%emt 0:00:30]} 22. Bxa5 {
[%emt 0:00:30]} Qc8 {[%emt 0:00:30]} 23. Qb4 {[%emt 0:00:30]} O-O {[%emt 0:00:
30]} 24. O-O {[%emt 0:00:30]} Qa8 {[%emt 0:00:30]} 25. Rb2 {[%emt 0:00:30]} Rc8
{[%emt 0:00:30]} 26. Rfb1 {[%emt 0:00:30]} Nd7 {[%emt 0:00:30]} 27. Bb6 {
[%emt 0:00:30]} Qa6 {[%emt 0:00:30]} 28. Qa5 {[%emt 0:00:30]} Qxa5 {[%emt 0:00:
30]} 29. Bxa5 {[%emt 0:00:30]} Kf8 {[%emt 0:00:30]} 30. Kf1 {[%emt 0:00:30]}
Ke8 {[%emt 0:00:30]} 31. Ke2 {[%emt 0:00:30]} Bd8 {[%emt 0:00:30]} 32. Be1 {
[%emt 0:00:30]} Bc7 {[%emt 0:00:30]} 33. h3 {[%emt 0:00:30]} Ra8 {[%emt 0:00:
30]} 34. f3 {[%emt 0:00:30]} exf3+ 35. gxf3 {[%emt 0:00:30]} Nf6 {[%emt 0:01:
00]} 36. Kf2 {[%emt 0:00:30]} Nh5 {[%emt 0:00:30]} 37. Kg2 {[%emt 0:00:30]} f5
{[%emt 0:00:30]} 38. Ra1 {[%emt 0:00:30]} Ra3 {[%emt 0:00:30]} 39. Rb3 {
[%emt 0:00:30]} Ra8 {[%emt 0:00:30]} 40. a3 {[%emt 0:00:30]} Kd7 {[%emt 0:00:
30]} 41. Bf2 {[%emt 0:00:30]} f4 {[%emt 0:00:30]} 42. Rc1 {[%emt 0:00:30]} Re8
{[%emt 0:00:30]} 43. h4 {[%emt 0:00:30]} fxe3 {[%emt 0:00:30]} 44. Rxe3 {
[%emt 0:00:30]} Nf4+ 45. Kh1 {[%emt 0:00:30]} Rxe3 {[%emt 0:01:00]} 46. Bxe3 {
[%emt 0:00:30]} Ne6 {[%emt 0:38:14]} 47. Kg2 {[%emt 0:56:21]} Ba5 {[%emt 0:03:
09]} 48. Rb1 {[%emt 0:00:49]} Bc3 {[%emt 0:01:20]} 49. Rd1 {[%emt 0:00:07]} Bb2
{[%emt 0:01:00]} 50. f4 {[%emt 0:02:39]} g6 {[%emt 0:00:51]} 51. Kf3 {[%emt 0:
00:32]} Bxa3 {[%emt 0:06:35]} 52. Rb1 {[%emt 0:00:17]} Nc7 {[%emt 0:01:12]} 53.
Rb3 {[%emt 0:01:16]} Nb5 {[%emt 0:00:30]} 54. Kg4 {[%emt 0:00:08]} Ke6 {
[%emt 0:00:43]} 55. Kg5 {[%emt 0:00:58]} Kf7 {[%emt 0:00:21]} 1/2-1/2

[Event "African Open (w)"]
[Site "followchess.com"]
[Date "2022.09.22"]
[Round "5"]
[White "Pelomoh Jessica"]
[Black "Yavo Tchetche, Marie"]
[Result "1-0"]
[ECO "A48"]
[WhiteElo "1904"]
[BlackElo "1363"]
[PlyCount "123"]
[EventDate "2022.??.??"]
[TimeControl "5400+30"]

1. d4 {[%emt 0:00:08]} Nf6 {[%emt 0:00:24]} 2. Bf4 {[%emt 0:00:08]} g6 {
[%emt 0:00:22]} 3. Nf3 {[%emt 0:00:06]} Bg7 {[%emt 0:00:27]} 4. e3 {[%emt 0:00:
31]} O-O {[%emt 0:00:37]} 5. Bd3 {[%emt 0:00:26]} d6 {[%emt 0:00:32]} 6. Nbd2 {
[%emt 0:00:08]} Nbd7 {[%emt 0:00:42]} 7. h3 {[%emt 0:00:22]} c5 {[%emt 0:01:06]
} 8. c3 {[%emt 0:00:03]} a6 {[%emt 0:03:13]} 9. O-O {[%emt 0:00:12]} b5 {
[%emt 0:00:56]} 10. b3 {[%emt 0:01:04]} Nd5 {[%emt 0:03:07]} 11. Rc1 {[%emt 0:
01:45]} Nxf4 {[%emt 0:01:43]} 12. exf4 {[%emt 0:00:11]} Bb7 {[%emt 0:01:14]}
13. f5 {[%emt 0:00:49]} Rc8 {[%emt 0:02:10]} 14. fxg6 {[%emt 0:00:46]} fxg6 {
[%emt 0:01:18]} 15. Ng5 {[%emt 0:00:09]} Rf6 {[%emt 0:01:23]} 16. Nde4 {
[%emt 0:02:01]} Bxe4 {[%emt 0:02:05]} 17. Nxe4 {[%emt 0:05:50]} Rf8 {[%emt 0:
01:20]} 18. dxc5 {[%emt 0:02:01]} Nxc5 {[%emt 0:01:37]} 19. Nxc5 {[%emt 0:02:
20]} Rxc5 {[%emt 0:01:53]} 20. c4 {[%emt 0:00:50]} b4 {[%emt 0:00:46]} 21. Qg4
{[%emt 0:02:11]} Qc8 {[%emt 0:00:53]} 22. Qxc8 {[%emt 0:08:41]} Rfxc8 {[%emt 0:
00:51]} 23. Rfe1 {[%emt 0:02:01]} Bf6 {[%emt 0:01:03]} 24. Be4 {[%emt 0:00:41]}
e6 {[%emt 0:03:59]} 25. Bb7 {[%emt 0:01:30]} R8c7 {[%emt 0:01:29]} 26. Bxa6 {
[%emt 0:00:31]} e5 {[%emt 0:00:52]} 27. Rcd1 {[%emt 0:00:41]} Be7 {[%emt 0:01:
40]} 28. Re2 {[%emt 0:00:33]} Ra5 {[%emt 0:01:36]} 29. Bb5 {[%emt 0:00:10]}
Rca7 {[%emt 0:01:59]} 30. Rdd2 {[%emt 0:01:54]} Kf7 {[%emt 0:01:45]} 31. g3 {
[%emt 0:00:12]} Bf8 {[%emt 0:01:14]} 32. Kg2 {[%emt 0:00:34]} Ke6 {[%emt 0:02:
02]} 33. f4 {[%emt 0:06:15]} Bg7 {[%emt 0:02:31]} 34. Kf3 {[%emt 0:00:24]} Rf7
{[%emt 0:02:45]} 35. Bc6 {[%emt 0:02:04]} Rf8 {[%emt 0:00:48]} 36. Ke4 {
[%emt 0:01:01]} Ra6 {[%emt 0:02:20]} 37. Bd5+ {[%emt 0:02:21]} Kd7 {[%emt 0:03:
42]} 38. Rf2 {[%emt 0:01:16]} exf4 {[%emt 0:03:22]} 39. Rxf4 {[%emt 0:03:52]}
Rxf4+ {[%emt 0:04:42]} 40. gxf4 {[%emt 0:00:04]} Bc3 {[%emt 0:01:16]} 41. Rg2 {
[%emt 0:00:12]} Ke7 {[%emt 0:01:42]} 42. Bg8 {[%emt 0:00:51]} h6 {[%emt 0:01:
16]} 43. Rxg6 {[%emt 0:14:34]} Rxa2 {[%emt 0:05:47]} 44. Rxh6 {[%emt 0:02:46]}
Rb2 {[%emt 0:00:42]} 45. h4 {[%emt 0:07:41]} Rd2 {[%emt 0:02:50]} 46. h5 {
[%emt 0:04:16]} Rf2 {[%emt 0:04:44]} 47. Re6+ {[%emt 0:03:38]} Kd7 {[%emt 0:05:
53]} 48. Ke3 {[%emt 0:00:36]} Rg2 {[%emt 0:02:48]} 49. Rg6 {[%emt 0:00:09]}
Rxg6 {[%emt 0:09:29]} 50. hxg6 {[%emt 0:00:01]} Ke7 {[%emt 0:00:21]} 51. Ke4 {
[%emt 0:00:11]} Kf6 {[%emt 0:01:14]} 52. Bf7 {[%emt 0:00:05]} Bd2 {[%emt 0:00:
58]} 53. f5 {[%emt 0:01:39]} Bc3 {[%emt 0:01:09]} 54. Be6 {[%emt 0:01:25]} Be5
{[%emt 0:02:00]} 55. Kd5 {[%emt 0:00:41]} Ke7 {[%emt 0:00:40]} 56. Kc6 {
[%emt 0:00:02]} Bc3 {[%emt 0:00:29]} 57. Kb5 {[%emt 0:00:52]} Kf6 {[%emt 0:03:
55]} 58. Kc6 {[%emt 0:02:20]} Ke7 {[%emt 0:00:17]} 59. Kd5 {[%emt 0:03:02]} Be5
{[%emt 0:00:38]} 60. c5 {[%emt 0:00:27]} Bf6 {[%emt 0:00:00]} 61. cxd6+ {
[%emt 0:00:00]} Kd8 {[%emt 0:00:00]} 62. Kc5 {[%emt 0:00:00]} 1-0

[Event "African Open (w)"]
[Site "followchess.com"]
[Date "2022.09.24"]
[Round "6"]
[White "Mbatha, Constance"]
[Black "Pelomoh Jessica"]
[Result "1-0"]
[ECO "C01"]
[WhiteElo "1613"]
[BlackElo "1904"]
[PlyCount "111"]
[EventDate "2022.??.??"]
[TimeControl "5400+30"]

1. e4 {[%emt 0:00:04]} e6 {[%emt 0:00:11]} 2. d4 {[%emt 0:00:08]} d5 {[%emt 0:
00:50]} 3. exd5 {[%emt 0:00:20]} exd5 {[%emt 0:00:05]} 4. Nf3 {[%emt 0:00:08]}
Bd6 {[%emt 0:00:22]} 5. Be3 {[%emt 0:00:56]} Nf6 {[%emt 0:00:11]} 6. h3 {
[%emt 0:00:13]} Bf5 {[%emt 0:00:18]} 7. c4 {[%emt 0:00:28]} dxc4 {[%emt 0:00:
38]} 8. Bxc4 {[%emt 0:00:15]} O-O {[%emt 0:00:04]} 9. O-O {[%emt 0:00:36]} Nbd7
{[%emt 0:01:59]} 10. Nbd2 {[%emt 0:00:15]} c6 {[%emt 0:00:30]} 11. Rc1 {
[%emt 0:00:21]} Nb6 {[%emt 0:00:51]} 12. Bb3 {[%emt 0:01:46]} Nfd5 {[%emt 0:01:
50]} 13. Nc4 {[%emt 0:02:15]} Bc7 {[%emt 0:06:39]} 14. Bg5 {[%emt 0:03:52]} f6
{[%emt 0:01:38]} 15. Bh4 {[%emt 0:01:03]} Re8 {[%emt 0:01:27]} 16. Ne3 {
[%emt 0:00:29]} Be4 {[%emt 0:05:33]} 17. Re1 {[%emt 0:01:54]} Qd7 {[%emt 0:00:
56]} 18. Nf1 {[%emt 0:01:17]} Kh8 {[%emt 0:02:02]} 19. Bg3 {[%emt 0:00:59]}
Bxg3 {[%emt 0:10:32]} 20. Nxg3 {[%emt 0:00:49]} Bg6 {[%emt 0:00:23]} 21. Qd2 {
[%emt 0:01:02]} Rxe1+ {[%emt 0:02:17]} 22. Rxe1 {[%emt 0:01:16]} Re8 {[%emt 0:
00:03]} 23. Nh4 {[%emt 0:02:17]} Bf7 {[%emt 0:00:42]} 24. Nhf5 {[%emt 0:00:45]}
g6 {[%emt 0:01:03]} 25. Nh6 {[%emt 0:01:31]} Be6 {[%emt 0:00:52]} 26. Ng4 {
[%emt 0:05:15]} Bxg4 {[%emt 0:10:23]} 27. Rxe8+ {[%emt 0:00:43]} Qxe8 {[%emt 0:
00:03]} 28. hxg4 {[%emt 0:00:09]} Kg7 {[%emt 0:00:23]} 29. Qa5 {[%emt 0:02:31]}
a6 {[%emt 0:00:19]} 30. Kf1 {[%emt 0:02:37]} Qd7 {[%emt 0:00:14]} 31. Bd1 {
[%emt 0:01:42]} Nc4 {[%emt 0:00:51]} 32. Qe1 {[%emt 0:01:34]} Nxb2 {[%emt 0:00:
35]} 33. Bf3 {[%emt 0:01:12]} Nd3 {[%emt 0:00:38]} 34. Qb1 {[%emt 0:00:33]}
N3f4 {[%emt 0:01:03]} 35. Ne4 {[%emt 0:00:24]} Ne6 {[%emt 0:00:46]} 36. a4 {
[%emt 0:00:35]} Nxd4 {[%emt 0:05:02]} 37. Nc5 {[%emt 0:01:04]} Nxf3 {[%emt 0:
02:14]} 38. gxf3 {[%emt 0:00:13]} Qe7 {[%emt 0:01:11]} 39. Nxb7 {[%emt 0:01:11]
} Nc3 {[%emt 0:00:31]} 40. Qb6 {[%emt 0:01:41]} Nxa4 {[%emt 0:02:02]} 41. Qxc6
{[%emt 0:02:09]} Nc3 {[%emt 0:11:28]} 42. Qxa6 {[%emt 0:05:39]} Qd7 {[%emt 0:
04:37]} 43. Nd6 {[%emt 0:07:55]} Kf8 {[%emt 0:05:38]} 44. Qa3 {[%emt 0:05:07]}
Kg7 {[%emt 0:02:04]} 45. Qc5 {[%emt 0:05:11]} Na4 {[%emt 0:02:58]} 46. Qd4 {
[%emt 0:00:58]} Qe6 {[%emt 0:00:43]} 47. Qa7+ {[%emt 0:00:00]} Kf8 {[%emt 0:00:
39]} 48. Ne4 {[%emt 0:00:00]} f5 {[%emt 0:06:29]} 49. Ng5 {[%emt 0:00:00]} Qc4+
{[%emt 0:00:10]} 50. Kg2 {[%emt 0:00:00]} h6 {[%emt 0:03:25]} 51. Nh7+ {
[%emt 0:00:00]} Kg8 52. Nf6+ Kf8 {[%emt 0:01:17]} 53. Nd7+ {[%emt 0:00:00]} Kg8
{[%emt 0:00:25]} 54. Qa8+ {[%emt 0:00:00]} Kh7 {[%emt 0:01:40]} 55. Qf8 {
[%emt 0:00:00]} g5 {[%emt 0:07:44]} 56. gxf5 {[%emt 0:00:00]} 1-0

[Event "African Open (w)"]
[Site "followchess.com"]
[Date "2022.09.24"]
[Round "6"]
[White "Van Zyl, Charlize"]
[Black "Ampaire Shakira"]
[Result "1/2-1/2"]
[ECO "A43"]
[WhiteElo "1710"]
[BlackElo "1657"]
[PlyCount "153"]
[EventDate "2022.??.??"]
[TimeControl "5400+30"]

1. d4 {[%emt 0:00:02]} c5 {[%emt 0:01:12]} 2. d5 {[%emt 0:01:16]} Nf6 {[%emt 0:
04:36]} 3. Nc3 {[%emt 0:01:20]} d6 {[%emt 0:02:37]} 4. e4 {[%emt 0:00:35]} e6 {
[%emt 0:01:55]} 5. Bb5+ {[%emt 0:03:13]} Bd7 {[%emt 0:00:09]} 6. dxe6 {[%emt 0:
03:25]} fxe6 {[%emt 0:00:10]} 7. e5 {[%emt 0:01:20]} Bxb5 {[%emt 0:04:59]} 8.
exf6 {[%emt 0:02:32]} Bc6 {[%emt 0:00:11]} 9. fxg7 {[%emt 0:03:15]} Bxg7 {
[%emt 0:00:08]} 10. Qh5+ {[%emt 0:00:41]} Kd7 {[%emt 0:00:56]} 11. Nge2 {
[%emt 0:01:30]} Qf6 {[%emt 0:07:22]} 12. O-O {[%emt 0:09:13]} Na6 {[%emt 0:02:
17]} 13. Bf4 {[%emt 0:03:16]} Rag8 {[%emt 0:05:25]} 14. Rad1 {[%emt 0:04:25]}
Bf8 {[%emt 0:05:06]} 15. f3 {[%emt 0:02:44]} Qg6 {[%emt 0:05:09]} 16. Qxg6 {
[%emt 0:02:00]} Rxg6 {[%emt 0:00:10]} 17. Ne4 {[%emt 0:00:44]} d5 {[%emt 0:00:
47]} 18. Be5 {[%emt 0:04:23]} Bg7 {[%emt 0:00:56]} 19. f4 {[%emt 0:03:26]} Ke7
{[%emt 0:06:46]} 20. Bd6+ {[%emt 0:02:33]} Kf7 {[%emt 0:06:45]} 21. Nxc5 {
[%emt 0:01:06]} Nxc5 {[%emt 0:00:53]} 22. Bxc5 {[%emt 0:00:04]} Bxb2 {[%emt 0:
00:53]} 23. Bd4 {[%emt 0:07:47]} Bxd4+ {[%emt 0:00:19]} 24. Nxd4 {[%emt 0:00:
04]} Rhg8 {[%emt 0:07:36]} 25. Rf2 {[%emt 0:00:24]} Rc8 {[%emt 0:01:03]} 26.
Re1 {[%emt 0:03:23]} Rf6 {[%emt 0:01:17]} 27. g3 {[%emt 0:01:23]} Bd7 {[%emt 0:
01:20]} 28. Rfe2 {[%emt 0:02:02]} Rc4 {[%emt 0:01:08]} 29. Nf3 {[%emt 0:00:12]}
Ra4 {[%emt 0:03:54]} 30. c3 {[%emt 0:02:03]} Ra3 {[%emt 0:02:43]} 31. Ne5+ {
[%emt 0:03:10]} Ke7 {[%emt 0:00:18]} 32. c4 {[%emt 0:00:52]} dxc4 {[%emt 0:01:
05]} 33. Nxc4 {[%emt 0:00:06]} Rc3 {[%emt 0:01:04]} 34. Ne3 {[%emt 0:03:06]}
Bc6 {[%emt 0:01:24]} 35. Rc2 {[%emt 0:03:33]} Rxc2 {[%emt 0:01:23]} 36. Nxc2 {
[%emt 0:00:04]} Kd6 {[%emt 0:01:16]} 37. Nd4 {[%emt 0:04:34]} Bd5 {[%emt 0:01:
05]} 38. Nb5+ {[%emt 0:03:42]} Kc5 {[%emt 0:00:11]} 39. Nxa7 {[%emt 0:01:13]}
Bxa2 {[%emt 0:01:36]} 40. Rc1+ {[%emt 0:00:11]} Bc4 {[%emt 0:00:59]} 41. Nc8 {
[%emt 0:02:23]} b5 {[%emt 0:01:13]} 42. Rd1 {[%emt 0:01:34]} Rf8 {[%emt 0:06:
13]} 43. Nd6 {[%emt 0:01:16]} Bd5 {[%emt 0:00:13]} 44. Nxb5 {[%emt 0:01:53]}
Kxb5 {[%emt 0:00:07]} 45. Kf2 {[%emt 0:00:12]} Ra8 {[%emt 0:00:16]} 46. Ke3 {
[%emt 0:02:43]} Ra2 {[%emt 0:01:17]} 47. Rd2 {[%emt 0:00:15]} Ra4 {[%emt 0:01:
30]} 48. Rd4 {[%emt 0:00:35]} Ra1 {[%emt 0:00:07]} 49. Rd2 {[%emt 0:00:25]} Kc5
{[%emt 0:00:09]} 50. Rc2+ {[%emt 0:00:24]} Kd6 {[%emt 0:00:16]} 51. Rd2 {
[%emt 0:00:28]} Re1+ {[%emt 0:00:31]} 52. Kf2 {[%emt 0:00:37]} Rh1 {[%emt 0:00:
33]} 53. Ke3 {[%emt 0:00:07]} Rf1 {[%emt 0:00:40]} 54. Ke2 {[%emt 0:00:58]} Rb1
{[%emt 0:01:52]} 55. Ke3 {[%emt 0:00:38]} Ke7 {[%emt 0:00:33]} 56. f5 {[%emt 0:
03:09]} Rb3+ {[%emt 0:06:35]} 57. Kd4 {[%emt 0:01:01]} Rb4+ {[%emt 0:00:11]}
58. Ke3 {[%emt 0:00:16]} Re4+ {[%emt 0:00:31]} 59. Kf2 {[%emt 0:00:07]} Ra4 {
[%emt 0:00:52]} 60. fxe6 {[%emt 0:00:10]} Ra2 {[%emt 0:00:33]} 61. Rxa2 {
[%emt 0:00:09]} Bxa2 {[%emt 0:00:11]} 62. Kf3 {[%emt 0:00:13]} Kxe6 {[%emt 0:
00:06]} 63. Kf4 {[%emt 0:00:06]} Bd5 {[%emt 0:00:23]} 64. Kg5 {[%emt 0:01:10]}
Kf7 {[%emt 0:00:19]} 65. Kh6 {[%emt 0:01:38]} Kg8 {[%emt 0:02:20]} 66. g4 {
[%emt 0:00:08]} Be6 {[%emt 0:00:24]} 67. g5 {[%emt 0:00:08]} Bf5 {[%emt 0:02:
47]} 68. h4 {[%emt 0:00:07]} Kf7 {[%emt 0:00:07]} 69. h5 {[%emt 0:00:40]} Be4 {
[%emt 0:00:09]} 70. g6+ {[%emt 0:00:20]} Bxg6 {[%emt 0:00:16]} 71. hxg6+ {
[%emt 0:00:05]} hxg6 {[%emt 0:00:06]} 72. Kg5 {[%emt 0:00:03]} Kg7 {[%emt 0:00:
13]} 73. Kg4 {[%emt 0:00:05]} Kf6 {[%emt 0:00:26]} 74. Kf4 {[%emt 0:00:06]} Kg7
{[%emt 0:01:16]} 75. Kg5 {[%emt 0:00:08]} Kh7 {[%emt 0:00:03]} 76. Kg4 {
[%emt 0:00:05]} Kh6 77. Kh4 {[%emt 0:00:30]} 1/2-1/2

[Event "African Open (w)"]
[Site "followchess.com"]
[Date "2022.09.24"]
[Round "6"]
[White "Phiri Bertha"]
[Black "Amadasun, Rosemary"]
[Result "0-1"]
[ECO "C20"]
[WhiteElo "1584"]
[BlackElo "1807"]
[PlyCount "163"]
[EventDate "2022.??.??"]
[TimeControl "5400+30"]

1. e4 {[%emt 0:00:09]} e5 {[%emt 0:00:14]} 2. d3 {[%emt 0:00:35]} Nc6 {[%emt 0:
00:43]} 3. Nf3 {[%emt 0:00:36]} Be7 {[%emt 0:00:25]} 4. g3 {[%emt 0:00:09]} Nf6
{[%emt 0:00:53]} 5. Bg2 {[%emt 0:00:27]} d6 {[%emt 0:00:27]} 6. h3 {[%emt 0:00:
17]} h6 {[%emt 0:00:20]} 7. c3 {[%emt 0:00:25]} Be6 {[%emt 0:01:57]} 8. O-O {
[%emt 0:01:38]} Qd7 {[%emt 0:01:15]} 9. Kh2 {[%emt 0:00:11]} g5 {[%emt 0:01:03]
} 10. Ng1 {[%emt 0:00:37]} d5 {[%emt 0:04:08]} 11. Nd2 {[%emt 0:01:06]} d4 {
[%emt 0:02:32]} 12. c4 {[%emt 0:00:35]} a5 {[%emt 0:05:09]} 13. a3 {[%emt 0:01:
59]} a4 {[%emt 0:03:06]} 14. b4 {[%emt 0:00:57]} axb3 {[%emt 0:00:59]} 15. Nxb3
{[%emt 0:00:59]} Na5 {[%emt 0:00:40]} 16. Bd2 {[%emt 0:01:36]} Nxb3 {[%emt 0:
00:58]} 17. Qxb3 {[%emt 0:00:13]} c5 {[%emt 0:02:28]} 18. Rfb1 {[%emt 0:00:36]}
Rb8 {[%emt 0:01:40]} 19. a4 {[%emt 0:06:18]} O-O {[%emt 0:00:31]} 20. Qb5 {
[%emt 0:00:09]} Ne8 {[%emt 0:04:42]} 21. Qxd7 {[%emt 0:01:24]} Bxd7 22. f4 f6 {
[%emt 0:04:36]} 23. Nf3 {[%emt 0:11:47]} Bd6 {[%emt 0:02:17]} 24. f5 {[%emt 0:
02:21]} Bc6 {[%emt 0:01:53]} 25. Ne1 {[%emt 0:08:10]} Nc7 {[%emt 0:01:25]} 26.
Bf3 {[%emt 0:04:19]} Ra8 {[%emt 0:01:54]} 27. a5 {[%emt 0:04:39]} Na6 {[%emt 0:
04:34]} 28. Nc2 {[%emt 0:00:08]} Kg7 {[%emt 0:01:52]} 29. h4 {[%emt 0:00:08]}
Bc7 {[%emt 0:05:38]} 30. Na3 {[%emt 0:08:58]} Nb4 31. Bxb4 {[%emt 0:09:26]}
cxb4 {[%emt 0:19:49]} 32. Rxb4 Rxa5 33. Nc2 {[%emt 0:08:22]} Rfa8 {[%emt 0:01:
40]} 34. Rxa5 {[%emt 0:05:30]} Bxa5 {[%emt 0:02:33]} 35. Rb3 {[%emt 0:01:38]}
Bd2 {[%emt 0:02:07]} 36. Ra3 {[%emt 0:01:22]} Rb8 {[%emt 0:02:46]} 37. Ra7 {
[%emt 0:04:28]} gxh4 {[%emt 0:00:58]} 38. gxh4 {[%emt 0:00:48]} Kf7 {[%emt 0:
02:49]} 39. Bh5+ {[%emt 0:02:18]} Ke7 {[%emt 0:01:56]} 40. Na3 {[%emt 0:00:58]}
Kd6 {[%emt 0:01:19]} 41. Bf7 {[%emt 0:03:00]} Bb4 {[%emt 0:05:51]} 42. Nb5+ {
[%emt 0:01:12]} Kc5 {[%emt 0:04:36]} 43. Kg2 {[%emt 0:04:18]} Kb6 {[%emt 0:02:
52]} 44. Ra2 {[%emt 0:02:40]} Bxb5 {[%emt 0:00:24]} 45. cxb5 {[%emt 0:00:04]}
Kxb5 {[%emt 0:00:28]} 46. Rb2 {[%emt 0:00:06]} Kc5 {[%emt 0:00:15]} 47. Kf3 {
[%emt 0:01:13]} b5 {[%emt 0:00:57]} 48. Kg4 {[%emt 0:02:40]} Bc3 {[%emt 0:01:
33]} 49. Rb3 {[%emt 0:01:10]} Bd2 {[%emt 0:00:16]} 50. h5 {[%emt 0:00:42]} Rb7
{[%emt 0:01:19]} 51. Be6 {[%emt 0:00:34]} Rg7+ {[%emt 0:00:34]} 52. Kf3 {
[%emt 0:00:05]} b4 {[%emt 0:02:04]} 53. Bc4 {[%emt 0:00:36]} Rg1 {[%emt 0:00:
00]} 54. Bf7 {[%emt 0:00:00]} Kb5 {[%emt 0:00:00]} 55. Bc4+ {[%emt 0:00:00]}
Kc5 {[%emt 0:00:00]} 56. Bf7 {[%emt 0:00:00]} Rc1 {[%emt 0:00:00]} 57. Ke2 {
[%emt 0:00:00]} Bc3 {[%emt 0:00:00]} 58. Kf2 {[%emt 0:00:00]} Kb5 {[%emt 0:00:
00]} 59. Be8+ {[%emt 0:00:00]} Ka5 {[%emt 0:00:00]} 60. Ke2 {[%emt 0:00:00]}
Re1+ {[%emt 0:00:00]} 61. Kf2 {[%emt 0:00:00]} Re3 {[%emt 0:00:00]} 62. Bf7 {
[%emt 0:00:00]} Rxd3 {[%emt 0:00:00]} 63. Bc4 {[%emt 0:00:00]} Rd2+ {[%emt 0:
00:00]} 64. Kf3 {[%emt 0:00:00]} Rh2 {[%emt 0:00:00]} 65. Bf7 {[%emt 0:00:00]}
d3 {[%emt 0:00:00]} 66. Ke3 {[%emt 0:00:00]} d2 {[%emt 0:00:00]} 67. Rb1 {
[%emt 0:00:00]} Rh3+ {[%emt 0:00:00]} 68. Ke2 {[%emt 0:00:00]} Kb5 {[%emt 0:00:
00]} 69. Rf1 {[%emt 0:00:00]} Kc5 {[%emt 0:00:00]} 70. Bb3 {[%emt 0:00:00]} Kd4
{[%emt 0:00:00]} 71. Bc2 {[%emt 0:00:00]} Rxh5 {[%emt 0:00:00]} 72. Rg1 {
[%emt 0:00:00]} Rh2+ {[%emt 0:00:00]} 73. Kf3 {[%emt 0:00:00]} Kc4 {[%emt 0:00:
00]} 74. Rb1 {[%emt 0:00:00]} Kd4 {[%emt 0:00:00]} 75. Rg1 {[%emt 0:00:00]} Bb2
{[%emt 0:00:00]} 76. Rg7 {[%emt 0:00:00]} Rh1 {[%emt 0:00:00]} 77. Rd7+ {
[%emt 0:00:00]} Kc4 {[%emt 0:00:00]} 78. Rxd2 {[%emt 0:00:00]} Bd4 {[%emt 0:00:
00]} 79. Rd3 {[%emt 0:00:00]} Rc1 {[%emt 0:00:00]} 80. Rd2 {[%emt 0:00:00]} Kc3
{[%emt 0:00:00]} 81. Rh2 {[%emt 0:00:00]} Rxc2 82. Rxh6 0-1